bitfinex-derivatives/quotes_BTCF0:USTF0_20251108
["timestamp","ask_amount","ask_price","bid_price","bid_amount"]
[1762560293650,1.65088037,103150.0,103140.0,0.32617395]
[1762560293850,0.68292037,103150.0,103140.0,0.32817395]
[1762560294049,1.65188037,103150.0,103140.0,0.32817395]
[1762560294252,0.3608,103190.0,103170.0,0.0969905]
[1762560294552,0.3608,103190.0,103180.0,0.0969789]
[1762560294553,1.3814,103190.0,103180.0,0.0969789]
[1762560294859,1.3814,103190.0,103180.0,0.38577121]
[1762560295259,1.38151379,103190.0,103180.0,0.3392589]
[1762560295454,1.38251379,103190.0,103180.0,0.3392589]
[1762560295763,1.02171379,103190.0,103180.0,0.7000589]
[1762560295952,1.02171379,103190.0,103180.0,0.74654194]
[1762560296452,1.02171379,103190.0,103180.0,0.74754194]
[1762560296852,1.02071379,103190.0,103180.0,0.74854194]
[1762560297052,1.38151379,103190.0,103180.0,0.42124266]
[1762560297253,1.38151379,103190.0,103180.0,0.1442392]
[1762560297459,1.38151379,103190.0,103180.0,0.3865192]
[1762560298154,1.38151379,103190.0,103180.0,0.3412611]
[1762560298558,1.38151379,103190.0,103180.0,0.0989811]
[1762560298758,1.38151379,103190.0,103180.0,0.002]
[1762560299056,1.49779379,103190.0,103180.0,0.002]
[1762560299558,1.49779379,103190.0,103180.0,0.24428]
[1762560300260,1.49779379,103190.0,103180.0,0.3412611]
[1762560300851,1.49779379,103190.0,103180.0,0.002]
[1762560301051,0.71677,103180.0,103170.0,0.00014488]
[1762560301254,0.71677,103180.0,103160.0,0.03472346]
[1762560301255,0.71677,103160.0,103150.0,0.13173176]
[1762560301454,1.43757,103160.0,103150.0,0.0970083]
[1762560301665,0.71677,103150.0,103140.0,0.13173366]
[1762560301865,1.43765358,103150.0,103140.0,0.13173366]
[1762560302066,1.55393358,103150.0,103140.0,0.13173366]
[1762560302563,1.07685358,103150.0,103140.0,0.73489366]
[1762560302765,0.52541358,103150.0,103140.0,0.81071979]
[1762560303161,0.52541358,103150.0,103140.0,0.91267068]
[1762560303666,0.36008358,103150.0,103140.0,1.23558722]
[1762560303963,0.36108358,103150.0,103140.0,1.48594722]
[1762560304358,8e-08,103150.0,103140.0,0.88594722]
[1762560305060,0.71691488,103160.0,103150.0,0.0970093]
[1762560305260,0.33014488,103160.0,103150.0,0.73492114]
[1762560305566,0.33023603,103160.0,103150.0,0.83187203]
[1762560305758,0.33023603,103160.0,103150.0,0.79712019]
[1762560305958,0.49556603,103160.0,103150.0,0.79712019]
[1762560306153,0.49556603,103160.0,103150.0,0.55576019]
[1762560306360,0.00100003,103160.0,103150.0,0.80312019]
[1762560306560,0.16533,103170.0,103160.0,0.0969999]
[1762560306866,0.25,103170.0,103160.0,0.7001599]
[1762560307060,0.68758,103170.0,103160.0,0.7001599]
[1762560307260,0.96677,103170.0,103160.0,0.79709199]
[1762560307568,0.96677,103170.0,103160.0,0.79809199]
[1762560307862,0.96677,103170.0,103160.0,0.79805199]
[1762560308065,0.96677,103170.0,103160.0,0.55573199]
[1762560308468,0.96977,103170.0,103160.0,0.79805199]
[1762560309266,0.96977,103170.0,103160.0,0.55573199]
[1762560309467,0.96977,103170.0,103160.0,0.79805199]
[1762560309668,0.253,103170.0,103160.0,0.79805199]
[1762560309868,0.96977,103170.0,103160.0,0.79805199]
[1762560311159,0.96977,103170.0,103160.0,0.86749803]
[1762560311767,0.96977,103170.0,103160.0,0.62517803]
[1762560311969,0.96977,103170.0,103160.0,0.86749803]
[1762560312273,0.96977,103170.0,103160.0,0.62517803]
[1762560312472,0.96977,103170.0,103160.0,0.86749803]
[1762560312773,0.96977,103170.0,103160.0,0.62517803]
[1762560312968,0.96977,103170.0,103160.0,0.86749803]
[1762560313369,1e-07,103170.0,103160.0,0.86749803]
[1762560313672,8e-08,103180.0,103170.0,0.3393105]
[1762560313866,1.07757,103200.0,103190.0,0.0969717]
[1762560314071,1.28757,103200.0,103190.0,0.13177489]
[1762560314273,1.28757,103200.0,103190.0,0.37401489]
[1762560314573,1.40385,103200.0,103190.0,0.37401489]
[1762560314763,1.40385,103200.0,103190.0,0.13177489]
[1762560314968,1.40385,103200.0,103190.0,0.37401489]
[1762560315163,1.40785,103200.0,103190.0,0.37401489]
[1762560315375,1.40785,103200.0,103190.0,0.42621967]
[1762560316073,1.40785,103200.0,103190.0,0.18397967]
[1762560316374,1.40785,103200.0,103190.0,0.37401489]
[1762560317062,1.40785,103200.0,103190.0,0.13177489]
[1762560317466,1.89233,103200.0,103190.0,0.13177489]
[1762560317671,0.43758,103180.0,103140.0,1.22532994]
[1762560317871,0.3608,103170.0,103140.0,1.86538514]
[1762560318071,0.6808,103170.0,103140.0,2.10943201]
[1762560318368,0.6808,103170.0,103140.0,2.2063688]
[1762560318572,0.72708007,103150.0,103140.0,1.4789589]
[1762560318774,1.07708007,103150.0,103140.0,1.82158378]
[1762560319071,0.38,103150.0,103140.0,2.64712234]
[1762560319269,0.3608,103160.0,103150.0,0.0970093]
[1762560319472,0.6808,103160.0,103150.0,0.0970093]
[1762560319874,1.11838,103160.0,103150.0,0.19396019]
[1762560320170,1.19974682,103160.0,103150.0,0.19396019]
[1762560320569,1.92682689,103160.0,103150.0,0.19396019]
[1762560320771,1.19974682,103160.0,103150.0,0.19396019]
[1762560320970,1.19974682,103160.0,103150.0,0.09695089]
[1762560321276,1.53618682,103160.0,103150.0,0.19396019]
[1762560321475,1.53618682,103160.0,103150.0,0.20296019]
[1762560321776,1.53718682,103160.0,103150.0,0.20296019]
[1762560322476,1.08546682,103160.0,103150.0,0.20996019]
[1762560322781,2.14894689,103160.0,103150.0,0.20996019]
[1762560323075,1.42186682,103160.0,103150.0,0.20996019]
[1762560323279,2.14894689,103160.0,103150.0,0.20996019]
[1762560323575,1.42186682,103160.0,103150.0,0.20996019]
[1762560324073,2.14894689,103160.0,103150.0,0.20996019]
[1762560324472,1.42186682,103160.0,103150.0,0.20996019]
[1762560324877,1.20174682,103160.0,103150.0,0.20996019]
[1762560325076,1.42182682,103160.0,103150.0,0.20996019]
[1762560325278,0.81321682,103160.0,103150.0,0.20996019]
[1762560325473,2e-08,103160.0,103150.0,1.48558019]
[1762560325680,0.27000002,103160.0,103150.0,1.96822023]
[1762560326078,0.08343879,103160.0,103150.0,1.72586023]
[1762560326277,0.00014488,103170.0,103160.0,0.1939399]
[1762560326479,0.31014488,103170.0,103160.0,0.4362999]
[1762560326780,0.31014488,103170.0,103160.0,0.5232335]
[1762560326974,0.31014488,103170.0,103160.0,0.62017499]
[1762560327579,0.31114488,103170.0,103160.0,0.62817499]
[1762560328081,0.31114488,103170.0,103160.0,0.63317499]
[1762560328283,0.31114488,103170.0,103160.0,0.54624139]
[1762560328581,0.31114488,103170.0,103160.0,0.54620139]
[1762560329375,0.31114488,103170.0,103160.0,0.30388139]
[1762560329679,0.31114488,103170.0,103160.0,0.54620139]
[1762560330182,0.31114488,103170.0,103160.0,0.54868139]
[1762560330382,8e-08,103170.0,103160.0,0.79100139]
[1762560330580,0.32000008,103170.0,103160.0,0.54868139]
[1762560330789,0.32000008,103170.0,103160.0,0.79100139]
[1762560331582,0.32000008,103170.0,103160.0,0.30388139]
[1762560331984,0.32000008,103170.0,103160.0,0.54620139]
[1762560332683,0.32000008,103170.0,103160.0,0.37342181]
[1762560332884,0.32000008,103170.0,103160.0,0.63313499]
[1762560333488,0.68080008,103170.0,103160.0,0.54620139]
[1762560333795,0.68080008,103170.0,103160.0,0.30388139]
[1762560334089,0.68080008,103170.0,103160.0,0.54620139]
[1762560334288,0.32000008,103170.0,103160.0,0.61578917]
[1762560335590,8e-08,103170.0,103160.0,0.61578917]
[1762560335890,1.06407488,103180.0,103170.0,0.0969904]
[1762560336192,1.23059488,103180.0,103170.0,0.74501438]
[1762560336689,1.23059488,103180.0,103170.0,0.59961708]
[1762560336879,1.23059488,103180.0,103170.0,0.84193708]
[1762560337082,1.23159488,103180.0,103170.0,0.84693708]
[1762560337278,1.23159488,103180.0,103170.0,0.60461708]
[1762560337487,1.23159488,103180.0,103170.0,0.84893708]
[1762560337680,1.23159488,103180.0,103170.0,0.60661708]
[1762560337884,0.31114488,103180.0,103170.0,0.94587708]
[1762560338080,0.14632548,103180.0,103170.0,1.0816667]
[1762560338283,0.14632548,103180.0,103170.0,1.3239867]
[1762560338284,0.331,103180.0,103170.0,1.3239867]
[1762560339194,0.70327488,103190.0,103180.0,0.0969811]
[1762560339386,1.05327488,103190.0,103180.0,0.76967376]
[1762560339892,1.16955488,103190.0,103180.0,0.86659646]
[1762560340586,1.17055488,103190.0,103180.0,0.86659646]
[1762560340787,1.17055488,103190.0,103180.0,0.50779646]
[1762560340987,1.17055488,103190.0,103180.0,0.94495184]
[1762560341295,1.17055488,103190.0,103180.0,0.70267184]
[1762560341489,1.17055488,103190.0,103180.0,0.94495184]
[1762560341792,1.17055488,103190.0,103180.0,0.70267184]
[1762560341992,1.17055488,103190.0,103180.0,0.87533918]
[1762560342193,1.17055488,103190.0,103180.0,0.63305918]
[1762560342393,1.17055488,103190.0,103180.0,0.87533918]
[1762560342989,1.17055488,103190.0,103180.0,0.94495184]
[1762560343696,1.17055488,103190.0,103180.0,0.70267184]
[1762560344090,1.17055488,103190.0,103180.0,0.94495184]
[1762560344291,1.17055488,103190.0,103180.0,0.70267184]
[1762560344492,1.17055488,103190.0,103180.0,0.94495184]
[1762560345094,1.17055488,103190.0,103180.0,0.70267184]
[1762560345498,1.17055488,103190.0,103180.0,0.94495184]
[1762560345699,1.17055488,103190.0,103180.0,0.70267184]
[1762560345899,1.17055488,103190.0,103180.0,0.94495184]
[1762560347101,1.17055488,103190.0,103180.0,0.70267184]
[1762560347403,1.17055488,103190.0,103180.0,0.94495184]
[1762560347596,1.17055488,103190.0,103180.0,0.70267184]
[1762560347994,1.17055488,103190.0,103180.0,0.94495184]
[1762560349302,1.17055488,103190.0,103180.0,0.70267184]
[1762560349503,1.17055488,103190.0,103180.0,0.94495184]
[1762560351302,1.17055488,103190.0,103180.0,0.70267184]
[1762560351502,1.17055488,103190.0,103180.0,0.94495184]
[1762560353103,1.05427488,103190.0,103180.0,0.94495184]
[1762560353305,1.17055488,103190.0,103180.0,0.94495184]
[1762560353702,1.17055488,103190.0,103180.0,0.70267184]
[1762560353902,1.17055488,103190.0,103180.0,0.94495184]
[1762560355407,1.17055488,103190.0,103180.0,0.94500873]
[1762560355808,1.17055488,103190.0,103180.0,0.87533918]
[1762560356107,0.41301008,103190.0,103180.0,1.19926706]
[1762560356307,0.25334,103190.0,103180.0,1.34572706]
[1762560356507,0.88255,103190.0,103180.0,1.34572706]
[1762560356704,0.3255763,103190.0,103180.0,1.34572706]
[1762560356907,1e-07,103190.0,103180.0,1.34572706]
[1762560357211,0.69632,103210.0,103200.0,0.7894123]
[1762560357396,0.6808,103210.0,103200.0,0.84166519]
[1762560357602,1.50076,103210.0,103200.0,0.84166519]
[1762560357804,1.50076,103210.0,103200.0,0.9385785]
[1762560358711,1.50476,103210.0,103200.0,0.9385785]
[1762560358908,0.80848,103210.0,103200.0,1.2993785]
[1762560359208,0.80848,103210.0,103200.0,1.24712561]
[1762560359410,0.80848,103210.0,103200.0,1.25212561]
[1762560359896,0.324,103210.0,103200.0,1.25212561]
[1762560360105,0.324,103210.0,103200.0,1.33750789]
[1762560360801,0.321,103210.0,103200.0,1.34350789]
[1762560361311,0.321,103210.0,103200.0,1.33750789]
[1762560361511,0.6828,103210.0,103200.0,0.98370789]
[1762560361713,0.322,103210.0,103200.0,0.91404001]
[1762560362114,0.322,103210.0,103200.0,0.98370789]
[1762560362308,0.322,103210.0,103200.0,1.34450789]
[1762560363412,0.322,103210.0,103200.0,1.27484001]
[1762560365402,0.322,103210.0,103200.0,1.34450789]
[1762560365806,0.322,103210.0,103200.0,1.27484001]
[1762560366512,0.322,103210.0,103200.0,1.34450789]
[1762560366910,0.322,103210.0,103200.0,1.27484001]
[1762560367212,0.322,103210.0,103200.0,1.36177361]
[1762560370709,0.00014488,103220.0,103200.0,1.36177361]
[1762560370710,0.00014488,103220.0,103210.0,0.7894029]
[1762560370920,0.31014488,103220.0,103210.0,1.55508819]
[1762560371313,0.67094488,103220.0,103210.0,1.27377562]
[1762560371909,0.67094488,103220.0,103210.0,1.29918272]
[1762560372226,0.67194488,103220.0,103210.0,1.30518272]
[1762560372719,0.31114488,103220.0,103210.0,1.66598272]
[1762560373124,0.31114488,103220.0,103210.0,1.30518272]
[1762560374222,0.31114488,103220.0,103210.0,1.66598272]
[1762560375519,0.79558488,103220.0,103210.0,1.66598272]
[1762560378218,0.31114488,103220.0,103210.0,1.66598272]
[1762560380419,0.07000488,103220.0,103210.0,1.92551103]
[1762560380724,8e-08,103220.0,103210.0,1.24897103]
[1762560380924,0.3608,103240.0,103210.0,1.24897103]
[1762560380925,0.52616,103240.0,103230.0,0.7893842]
[1762560381224,0.52616,103240.0,103230.0,1.4853442]
[1762560381225,0.84616,103240.0,103230.0,1.4853442]
[1762560381528,1.33048,103240.0,103230.0,1.58221057]
[1762560381917,0.84616,103240.0,103230.0,1.63438165]
[1762560382315,0.84616,103240.0,103230.0,1.65178685]
[1762560382716,0.84616,103240.0,103230.0,1.65378685]
[1762560382917,0.32,103240.0,103230.0,1.65378685]
[1762560383823,0.321,103240.0,103230.0,1.90794685]
[1762560384222,0.321,103240.0,103230.0,1.66578685]
[1762560384425,0.321,103240.0,103230.0,1.90794685]
[1762560384920,0.321,103240.0,103230.0,1.98490868]
[1762560386618,0.321,103240.0,103230.0,1.74274868]
[1762560386822,0.321,103240.0,103230.0,1.98490868]
[1762560387022,0.321,103240.0,103230.0,2.002266]
[1762560387221,0.321,103240.0,103230.0,1.9153324]
[1762560388112,0.00014488,103250.0,103230.0,2.53947993]
[1762560388317,0.06014488,103250.0,103240.0,1.21695813]
[1762560388517,0.37014488,103250.0,103240.0,1.21695813]
[1762560388718,0.63444488,103250.0,103240.0,1.21695813]
[1762560388917,0.88974488,103250.0,103240.0,1.3138245]
[1762560389319,0.63544488,103250.0,103240.0,1.3138245]
[1762560389719,0.37114488,103250.0,103240.0,1.3138245]
[1762560389920,0.63444488,103250.0,103240.0,1.3168245]
[1762560390122,0.63444488,103250.0,103240.0,1.3218245]
[1762560390123,0.37114488,103250.0,103240.0,1.3218245]
[1762560390725,0.63544488,103250.0,103240.0,1.3218245]
[1762560391127,0.63544488,103250.0,103240.0,1.25235117]
[1762560392126,0.63544488,103250.0,103240.0,1.3218245]
[1762560393026,0.37114488,103250.0,103240.0,1.3218245]
[1762560393733,0.37114488,103250.0,103240.0,1.25235117]
[1762560394634,0.37114488,103250.0,103240.0,1.3218245]
[1762560394830,0.37114488,103250.0,103240.0,1.25235117]
[1762560395023,0.37114488,103250.0,103240.0,1.32178923]
[1762560395227,0.37114488,103250.0,103240.0,1.25235117]
[1762560395426,0.0804629,103250.0,103240.0,1.75215117]
[1762560395634,0.8804,103280.0,103270.0,0.7705167]
[1762560395830,0.8804,103280.0,103270.0,1.06920803]
[1762560395831,1.3509,103280.0,103270.0,1.06920803]
[1762560396029,1.83506,103280.0,103270.0,0.02603487]
[1762560397029,1.83806,103280.0,103270.0,0.02603487]
[1762560397835,1.83906,103280.0,103270.0,0.02603487]
[1762560398540,2.17398,103280.0,103270.0,0.02603487]
[1762560399337,2.17398,103280.0,103270.0,4.87e-06]
[1762560399637,0.63047,103270.0,103260.0,0.00014488]
[1762560399841,1.83543,103270.0,103260.0,0.00014488]
[1762560400434,1.83543,103270.0,103260.0,0.09705098]
[1762560401042,1.83743,103270.0,103260.0,0.09705098]
[1762560401339,1.83743,103270.0,103260.0,0.09805098]
[1762560402443,1.83747,103270.0,103260.0,0.09805098]
[1762560402838,0.8816,103270.0,103260.0,1.24833921]
[1762560403034,0.8816,103270.0,103260.0,1.33512212]
[1762560403239,0.8816,103270.0,103260.0,1.30040896]
[1762560403744,0.362,103270.0,103260.0,1.30040896]
[1762560403943,0.362,103270.0,103260.0,1.34604413]
[1762560404149,0.361,103270.0,103260.0,1.35304413]
[1762560404338,0.11007658,103290.0,103280.0,0.7855174]
[1762560404538,0.45007658,103290.0,103280.0,0.7855174]
[1762560404836,0.93415658,103290.0,103280.0,1.27786843]
[1762560405238,0.93415658,103290.0,103280.0,1.28990995]
[1762560405432,0.93415658,103290.0,103280.0,1.29190995]
[1762560406036,0.93415658,103290.0,103280.0,1.27986843]
[1762560406233,1.29495658,103290.0,103280.0,0.91906843]
[1762560406437,1.62979658,103290.0,103280.0,0.002]
[1762560406647,1.62979658,103290.0,103280.0,0.0988874]
[1762560406836,1.62979658,103290.0,103280.0,0.002]
[1762560407236,0.16497,103280.0,103270.0,0.0968926]
[1762560407446,1.37989,103280.0,103270.0,0.0968926]
[1762560408839,1.38089,103280.0,103270.0,0.1048926]
[1762560409046,1.3259,103280.0,103270.0,0.5301526]
[1762560409346,1.32594,103280.0,103270.0,0.7935226]
[1762560409649,1.32594,103280.0,103270.0,0.7975226]
[1762560410248,1.32594,103280.0,103270.0,0.1436054]
[1762560411347,1.32594,103280.0,103270.0,0.8322354]
[1762560411543,0.96514,103280.0,103270.0,0.8322354]
[1762560411844,0.96514,103280.0,103270.0,1.28986425]
[1762560412041,0.96514,103280.0,103270.0,1.3072212]
[1762560412447,0.48098,103280.0,103270.0,1.3072212]
[1762560412648,0.371,103280.0,103270.0,1.3072212]
[1762560413344,0.371,103280.0,103270.0,1.35308806]
[1762560413543,0.371,103280.0,103270.0,1.30101831]
[1762560413847,0.371,103280.0,103270.0,1.37925235]
[1762560414742,0.331,103280.0,103270.0,1.37925235]
[1762560415839,9.658e-05,103290.0,103280.0,0.7855175]
[1762560416041,0.87920658,103290.0,103280.0,1.5333838]
[1762560416547,0.87920658,103290.0,103280.0,1.63021265]
[1762560416935,0.87920658,103290.0,103280.0,1.63521265]
[1762560417433,0.34009658,103290.0,103280.0,1.63621265]
[1762560420947,0.89057,103320.0,103310.0,0.7924293]
[1762560421154,1.25057,103320.0,103310.0,0.7924293]
[1762560421344,1.73453,103320.0,103310.0,0.7924293]
[1762560421541,1.8479,103320.0,103310.0,0.64067136]
[1762560421745,1.73453,103320.0,103310.0,0.88922066]
[1762560422350,1.73453,103320.0,103310.0,0.96595244]
[1762560422746,1.37373,103320.0,103310.0,0.96595244]
[1762560422941,1.37473,103320.0,103310.0,0.96595244]
[1762560423342,1.37473,103320.0,103310.0,1.32675244]
[1762560423649,1.37573,103320.0,103310.0,1.32875244]
[1762560426155,1.73653,103320.0,103310.0,0.96795244]
[1762560426948,1.37573,103320.0,103310.0,0.96795244]
[1762560427555,1.8499,103320.0,103310.0,0.81626714]
[1762560427857,1.73653,103320.0,103310.0,0.96795714]
[1762560428452,1.37573,103320.0,103310.0,1.32875714]
[1762560428659,1.37573,103320.0,103310.0,0.96795714]
[1762560429560,1.73653,103320.0,103310.0,0.96795714]
[1762560430154,1.73653,103320.0,103310.0,1.30267714]
[1762560431248,1.73653,103320.0,103310.0,1.3373904]
[1762560431448,1.73653,103320.0,103310.0,1.30267714]
[1762560431659,1.73653,103320.0,103310.0,0.96795714]
[1762560431855,1.73653,103320.0,103310.0,1.30263714]
[1762560432748,1.73653,103320.0,103310.0,0.71940314]
[1762560432749,1.8499,103320.0,103310.0,0.71940314]
[1762560432951,2.18454,103320.0,103310.0,0.002]
[1762560433258,0.64114,103310.0,103300.0,0.09702318]
[1762560433452,1.79594,103310.0,103300.0,0.09702318]
[1762560433653,1.79594,103310.0,103300.0,0.73769454]
[1762560434258,1.79594,103310.0,103300.0,0.46633454]
[1762560434953,1.79594,103310.0,103300.0,0.47033454]
[1762560435654,1.79594,103310.0,103300.0,0.74169454]
[1762560435853,1.79594,103310.0,103300.0,0.89338454]
[1762560436858,1.79594,103310.0,103300.0,0.10093624]
[1762560437753,1.79594,103310.0,103300.0,0.19781464]
[1762560438149,1.68457,103310.0,103300.0,0.89338464]
[1762560438353,1.69456995,103310.0,103300.0,0.89338464]
[1762560438754,1.80593995,103310.0,103300.0,0.89338464]
[1762560439848,1.80593995,103310.0,103300.0,0.74169464]
[1762560440054,1.80593995,103310.0,103300.0,0.64481624]
[1762560440367,1.80593995,103310.0,103300.0,0.37345624]
[1762560440572,1.80593995,103310.0,103300.0,0.47033464]
[1762560441063,0.45039041,103330.0,103300.0,1.34362464]
[1762560441264,1.09495041,103330.0,103310.0,0.51249]
[1762560441557,1.09495041,103330.0,103310.0,0.6093585]
[1762560443462,1.09495041,103330.0,103310.0,0.51249]
[1762560443656,1.09495041,103330.0,103300.0,0.94503028]
[1762560443657,1.09695041,103330.0,103300.0,0.94503028]
[1762560443958,1.14986744,103330.0,103300.0,1.04089558]
[1762560444266,1.15186744,103330.0,103300.0,1.31341888]
[1762560444464,1.15186744,103330.0,103310.0,0.0968684]
[1762560444772,1.14686744,103330.0,103310.0,0.0968684]
[1762560445063,1.15186744,103330.0,103310.0,0.0968684]
[1762560445463,1.15386744,103330.0,103310.0,0.0968684]
[1762560445766,1.15386744,103330.0,103300.0,1.58477658]
[1762560446063,1.15386744,103330.0,103310.0,0.0968656]
[1762560447262,1.15186744,103330.0,103310.0,0.0968656]
[1762560447461,1.15386744,103330.0,103310.0,0.0968656]
[1762560447661,1.15386744,103330.0,103310.0,0.2596956]
[1762560447868,1.15386744,103330.0,103310.0,0.3565573]
[1762560448166,1.10195041,103330.0,103310.0,0.2596914]
[1762560449267,1.10195041,103330.0,103310.0,0.5309114]
[1762560449566,1.15386744,103330.0,103310.0,0.5309114]
[1762560449963,0.80861,103340.0,103310.0,0.8917114]
[1762560450269,1.11861,103340.0,103310.0,0.8917114]
[1762560451066,1.12261,103340.0,103310.0,0.8917114]
[1762560451271,1.12861,103340.0,103310.0,0.8917114]
[1762560451572,1.12861,103340.0,103310.0,1.1505814]
[1762560451771,1.12861,103340.0,103310.0,0.8917114]
[1762560451971,1.12861,103340.0,103310.0,1.1505814]
[1762560453468,1.19782023,103340.0,103310.0,1.1505814]
[1762560454463,1.19782023,103340.0,103320.0,0.16283]
[1762560454670,1.12861,103340.0,103320.0,0.16283]
[1762560455179,1.19782023,103340.0,103320.0,0.16283]
[1762560455669,1.19182023,103340.0,103320.0,0.16283]
[1762560455977,0.9316221,103360.0,103330.0,0.7216]
[1762560456172,1.2416221,103360.0,103340.0,0.3608]
[1762560456569,1.15508581,103360.0,103340.0,0.3608]
[1762560457469,1.16108581,103360.0,103340.0,0.3608]
[1762560459781,1.06425691,103360.0,103340.0,0.3608]
[1762560459984,0.80028601,103360.0,103350.0,0.3608]
[1762560460783,0.92154036,103360.0,103350.0,0.3608]
[1762560461078,0.91954036,103360.0,103350.0,0.3608]
[1762560461280,0.91953336,103360.0,103350.0,0.3608]
[1762560461679,0.79827901,103360.0,103340.0,0.3608]
[1762560461877,0.79827901,103360.0,103340.0,0.4576403]
[1762560462078,1.15907901,103360.0,103340.0,0.4576403]
[1762560462670,1.15907901,103360.0,103340.0,0.3608]
[1762560463078,1.15507901,103360.0,103340.0,0.3608]
[1762560463278,1.15907901,103360.0,103340.0,0.3608]
[1762560463880,1.15507901,103360.0,103340.0,0.3608]
[1762560464086,1.15907901,103360.0,103340.0,0.3608]
[1762560464283,1.33585157,103360.0,103330.0,0.36094488]
[1762560464589,1.33585157,103360.0,103340.0,0.3608]
[1762560464590,1.23902057,103360.0,103340.0,0.3608]
[1762560464881,1.23902816,103360.0,103330.0,0.36094488]
[1762560465579,1.23902816,103360.0,103330.0,0.45779558]
[1762560465778,1.18608119,103360.0,103330.0,0.45779558]
[1762560465978,1.23803745,103360.0,103330.0,0.45779558]
[1762560466276,1.18608119,103360.0,103330.0,0.45779558]
[1762560466585,1.24123152,103360.0,103330.0,0.45779558]
[1762560466784,1.24123152,103360.0,103330.0,0.36094488]
[1762560466987,1.18808119,103360.0,103330.0,0.36094488]
[1762560468089,1.24172151,103360.0,103330.0,0.36094488]
[1762560468388,1.24152852,103360.0,103330.0,0.36094488]
[1762560468785,1.24152852,103360.0,103330.0,0.45779558]
[1762560469178,1.09125909,103360.0,103340.0,0.0968414]
[1762560469379,1.14316519,103360.0,103340.0,0.0968414]
[1762560469781,1.09125909,103360.0,103330.0,0.45778998]
[1762560469982,1.18808189,103360.0,103330.0,0.45778998]
[1762560470180,1.23998799,103360.0,103330.0,0.45778998]
[1762560470584,1.09125909,103360.0,103340.0,0.0968399]
[1762560470781,0.80122034,103360.0,103350.0,0.3608]
[1762560471382,0.80122034,103360.0,103340.0,0.4576399]
[1762560471794,0.79422034,103360.0,103340.0,0.4576399]
[1762560472092,0.80122034,103360.0,103350.0,0.3608]
[1762560472603,0.79422034,103360.0,103340.0,0.4576399]
[1762560472803,0.80022034,103360.0,103340.0,0.4576399]
[1762560472998,0.80022034,103360.0,103350.0,0.3608]
[1762560473205,0.80022034,103360.0,103340.0,0.3608]
[1762560473398,0.79422034,103360.0,103340.0,0.3608]
[1762560473704,0.70339744,103360.0,103340.0,0.3608]
[1762560473896,0.80022664,103360.0,103340.0,0.4576414]
[1762560474605,0.92137878,103360.0,103350.0,0.3608]
[1762560474907,0.79422664,103360.0,103350.0,0.3608]
[1762560475102,0.80022664,103360.0,103350.0,0.3608]
[1762560475708,0.79422664,103360.0,103350.0,0.3608]
[1762560475906,0.80022664,103360.0,103350.0,0.3608]
[1762560476404,0.88680193,103360.0,103350.0,0.3608]
[1762560476700,0.78997273,103360.0,103350.0,0.3608]
[1762560477005,0.88679543,103360.0,103350.0,0.3608]
[1762560477903,0.88079543,103360.0,103350.0,0.3608]
[1762560478102,0.88579543,103360.0,103350.0,0.3608]
[1762560478604,0.79922014,103360.0,103350.0,0.3608]
[1762560478996,0.92037228,103360.0,103350.0,0.3608]
[1762560480308,0.92170109,103360.0,103350.0,0.3608]
[1762560482610,0.88712833,103360.0,103340.0,0.3608]
[1762560482800,0.80054895,103360.0,103340.0,0.3608]
[1762560483001,0.92170109,103360.0,103340.0,0.3608]
[1762560483197,0.92170109,103360.0,103340.0,0.51674]
[1762560483397,0.92037228,103360.0,103340.0,0.3608]
[1762560484009,0.81854958,103360.0,103350.0,0.3608]
[1762560484208,0.81854958,103360.0,103340.0,0.57374052]
[1762560484209,0.82354958,103360.0,103340.0,0.57374052]
[1762560484815,0.92037908,103360.0,103340.0,0.3608]
[1762560485112,0.92037908,103360.0,103340.0,0.47689992]
[1762560485311,0.92037908,103360.0,103350.0,0.11609992]
[1762560485610,0.92137908,103360.0,103350.0,0.11609992]
[1762560485811,1.16102694,103360.0,103340.0,0.3608]
[1762560486005,1.16102694,103360.0,103350.0,0.11609992]
[1762560486205,0.80022694,103360.0,103350.0,0.11609992]
[1762560486510,1.16102694,103360.0,103340.0,0.51674]
[1762560486906,1.16102694,103360.0,103330.0,0.52492488]
[1762560487110,1.16102694,103360.0,103330.0,0.36094488]
[1762560487111,1.15502694,103360.0,103330.0,0.36094488]
[1762560487302,1.16102694,103360.0,103330.0,0.36094488]
[1762560487907,1.28217908,103360.0,103330.0,0.36094488]
[1762560488212,1.28217908,103360.0,103330.0,0.45779568]
[1762560488413,1.28217908,103360.0,103340.0,0.3608]
[1762560488804,1.27617908,103360.0,103340.0,0.3608]
[1762560489005,1.25896694,103360.0,103340.0,0.3608]
[1762560489411,1.337675,103360.0,103340.0,0.3608]
[1762560489704,1.51073704,103360.0,103340.0,0.3608]
[1762560489907,0.05729368,103350.0,103340.0,0.3608]
[1762560490211,0.39729368,103350.0,103340.0,0.3608]
[1762560490412,0.39729368,103350.0,103330.0,0.36094488]
[1762560490612,0.55245486,103340.0,103330.0,0.4770448]
[1762560490813,0.90378367,103340.0,103330.0,0.4770448]
[1762560491914,0.90378367,103340.0,103330.0,0.5738956]
[1762560492215,0.90878367,103340.0,103330.0,0.4770448]
[1762560493019,0.78765021,103340.0,103330.0,0.4770448]
[1762560493316,0.90878367,103340.0,103330.0,0.4770448]
[1762560493518,0.90878367,103340.0,103330.0,0.36094488]
[1762560497718,0.90878367,103340.0,103330.0,0.51688488]
[1762560502122,0.90878367,103340.0,103330.0,0.6329848]
[1762560503620,1.0000028,103360.0,103330.0,0.51688488]
[1762560503820,1.4028188,103360.0,103330.0,0.51688488]
[1762560504221,1.3059872,103360.0,103330.0,0.51688488]
[1762560504718,1.3129872,103360.0,103330.0,0.6329848]
[1762560504922,1.3129872,103360.0,103330.0,0.9129048]
[1762560505123,1.3129872,103360.0,103330.0,0.79680488]
[1762560506230,1.3129872,103360.0,103330.0,0.51688488]
[1762560506525,1.3129872,103360.0,103340.0,0.3608]
[1762560506720,0.9521872,103360.0,103340.0,1.05175]
[1762560507022,0.7584156,103360.0,103350.0,0.51806]
[1762560507223,0.7584156,103360.0,103350.0,0.79675]
[1762560507416,0.7584156,103360.0,103350.0,1.05175]
[1762560507616,0.21654241,103360.0,103350.0,1.26468152]
[1762560507811,0.365,103360.0,103350.0,1.26468152]
[1762560508019,0.4618222,103360.0,103350.0,1.26468152]
[1762560508225,0.4618222,103360.0,103350.0,1.16784992]
[1762560509121,0.4568222,103360.0,103350.0,1.16784992]
[1762560509326,0.4628222,103360.0,103350.0,1.16784992]
[1762560509922,0.4598222,103360.0,103350.0,1.16784992]
[1762560511632,0.363,103360.0,103350.0,1.16784992]
[1762560511828,0.4598218,103360.0,103350.0,1.16784992]